fUST/lending_fUST_20250128
["ID","MTS","AMOUNT","RATE_DAILY","PERIOD"]
[350693093,1738063847574,-13802.87,0.00016986,2]
[350693094,1738063847583,-1738.7,0.00016986,2]
[350693095,1738063847593,-500.0,0.00016986,2]
[350693096,1738063847602,-500.0,0.00016986,2]
[350693097,1738063847612,-500.0,0.00016986,2]
[350693098,1738063847621,-151.0,0.00016986,2]
[350693099,1738063847630,-500.0,0.00016986,2]
[350693100,1738063847639,-5594.44,0.00016986,2]
[350693101,1738063847648,-500.0,0.00016986,2]
[350693102,1738063847660,-500.0,0.00016986,2]
[350693103,1738063847669,-500.0,0.00016986,2]
[350693104,1738063847677,-500.0,0.00016986,2]
[350693105,1738063847684,-151.0,0.00016986,2]
[350693106,1738063847693,-157.949394,0.00016986,2]
[350693107,1738063847703,-151.0,0.00016986,2]
[350693108,1738063847713,-911.49,0.00016986,2]
[350693109,1738063847722,-809.43,0.00016986,2]
[350693110,1738063847731,-157.949394,0.00016986,2]
[350693111,1738063847747,-500.0,0.00016986,2]
[350693112,1738063847763,-573.9,0.00016986,2]
[350693113,1738063847772,-500.0,0.00016986,2]
[350693114,1738063847782,-624.8593109,0.00016986,2]
[350693115,1738063847792,-563.04,0.00016986,2]
[350693116,1738063847803,-500.0,0.00016986,2]
[350693117,1738063847813,-519.82,0.00016986,2]
[350693118,1738063847823,-500.0,0.00016986,2]
[350693119,1738063847833,-500.0,0.00016986,2]
[350693120,1738063847843,-500.0,0.00016986,2]
[350693121,1738063847852,-500.0,0.00016986,2]
[350693122,1738063847862,-500.0,0.00016986,2]
[350693123,1738063847871,-500.0,0.00016986,2]
[350693124,1738063847881,-151.0,0.00016986,2]
[350693125,1738063847895,-571.69,0.00016986,2]
[350693126,1738063847907,-500.0,0.00016986,2]
[350693127,1738063847916,-500.0,0.00016986,2]
[350693128,1738063847926,-151.0,0.00016986,2]
[350693129,1738063847936,-500.0,0.00016986,2]
[350693130,1738063847945,-2561.53,0.00016986,2]
[350693131,1738063847954,-1705.35,0.00016986,2]
[350693132,1738063847964,-500.0,0.00016986,2]
[350693133,1738063847974,-500.0,0.00016986,2]
[350693134,1738063847983,-500.0,0.00016986,2]
[350693135,1738063847993,-981.94,0.00016986,2]
[350693136,1738063848003,-500.0,0.00016986,2]
[350693137,1738063848013,-3911.49,0.00016986,2]
[350693138,1738063848022,-500.0,0.00016986,2]
[350693139,1738063848031,-500.0,0.00016986,2]
[350693140,1738063848040,-10502.16307223,0.00017,4]
[350693141,1738063848050,-1000.0,0.00017,2]
[350693142,1738063848060,-63250.30710923,0.00017,2]
[350693143,1738063848069,-151.0,0.00017,2]
[350693144,1738063848079,-151.0,0.00017,2]
[350693145,1738063848089,-488.189914,0.00017,2]
[350693146,1738063848098,-488.189914,0.00017,2]
[350693147,1738063848109,-151.0,0.00017,2]
[350693148,1738063848118,-151.0,0.00017,2]
[350693149,1738063848128,-151.0,0.00017,2]
[350693150,1738063848137,-151.0,0.00017,2]
[350693151,1738063848147,-151.0,0.00017,2]
[350693152,1738063848159,-151.0,0.00017,2]
[350693153,1738063848168,-500.0,0.00017021,2]
[350693154,1738063848177,-1000.0,0.00017021,2]
[350693155,1738063848187,-155.0,0.00017061,2]
[350693156,1738063848198,-155.0,0.00017061,2]
[350693157,1738063848207,-155.0,0.00017061,2]
[350693158,1738063848216,-155.0,0.00017061,2]
[350693159,1738063848226,-155.0,0.00017061,2]
[350693160,1738063848235,-155.0,0.00017061,2]
[350693161,1738063848244,-155.0,0.00017061,2]
[350693162,1738063848253,-155.0,0.00017061,2]
[350693163,1738063848262,-155.0,0.00017061,2]
[350693164,1738063848271,-155.0,0.00017061,2]
[350693165,1738063848280,-172.59,0.00017061,2]
[350693166,1738063848291,-500.0,0.00017089,2]
[350693167,1738063848300,-500.0,0.00017123,2]
[350693168,1738063848310,-878.63034847,0.00017123,2]
[350693169,1738063848328,-150.17,0.00017123,2]
[350693170,1738063848340,-742.4765995,0.00017123,2]
[350693171,1738063848354,-500.0,0.00017123,2]
[350693172,1738063848364,-150.17,0.00017123,2]
[350693173,1738063848374,-201.93119075,0.00017123,2]
[350693174,1738063848384,-500.0,0.00017123,2]
[350693175,1738063848394,-150.17,0.00017123,2]
[350693176,1738063848403,-150.17,0.00017123,2]
[350693177,1738063848414,-500.0,0.00017123,2]
[350693178,1738063848423,-151.0,0.00017123,2]
[350693179,1738063848433,-500.0,0.00017123,2]
[350693180,1738063848443,-500.0,0.00017123,2]
[350693181,1738063848453,-151.0,0.00017123,2]
[350693182,1738063848462,-535.40542,0.00017123,2]
[350693183,1738063848472,-500.0,0.00017123,2]
[350693184,1738063848481,-500.0,0.00017123,2]
[350693185,1738063848491,-500.0,0.00017123,2]
[350693186,1738063848501,-500.0,0.00017123,2]
[350693187,1738063848511,-500.0,0.00017123,2]
[350693188,1738063848520,-500.0,0.00017123,2]
[350693189,1738063848529,-500.0,0.00017123,2]
[350693190,1738063848538,-500.0,0.00017123,2]
[350693191,1738063848547,-500.02038159,0.00017123,2]
[350693192,1738063848557,-500.0,0.00017123,2]
[350693193,1738063848567,-500.0,0.00017123,2]
[350693194,1738063848577,-500.0,0.00017123,2]
[350693195,1738063848586,-500.0,0.00017123,2]
[350693196,1738063848595,-551.89241972,0.00017123,2]
[350693197,1738063848605,-500.0,0.00017123,2]
[350693198,1738063848614,-500.0,0.00017123,2]
[350693199,1738063848624,-500.0,0.00017123,2]
[350693200,1738063848634,-500.0,0.00017123,2]
[350693201,1738063848643,-660.63,0.00017123,2]
[350693202,1738063848653,-151.0,0.00017123,2]
[350693203,1738063848663,-500.0,0.00017123,2]
[350693204,1738063848734,-726.18,0.00017123,2]
[350693205,1738063848753,-500.0,0.00017123,2]
[350693206,1738063848762,-500.0,0.00017123,2]
[350693207,1738063848772,-500.0,0.00017123,2]
[350693208,1738063848783,-500.0,0.00017123,2]
[350693209,1738063848801,-739.57,0.00017123,2]
[350693210,1738063848816,-500.0,0.00017123,2]
[350693211,1738063848829,-487.46616063,0.00017123,2]
[350693212,1738063848839,-500.0,0.00017123,2]
[350693213,1738063848849,-500.0,0.00017123,2]
[350693214,1738063848859,-549.15,0.00017123,2]
[350693215,1738063848870,-274.04,0.00017123,2]
[350693216,1738063848880,-500.0,0.00017123,2]
[350693217,1738063848889,-500.0,0.00017123,2]
[350693218,1738063848899,-611.5,0.00017123,2]
[350693219,1738063848910,-949.13,0.00017123,2]
[350693220,1738063848920,-626.68053578,0.00017123,2]
[350693221,1738063848930,-13802.87,0.00017123,2]
[350693222,1738063848940,-1738.7,0.00017123,2]
[350693223,1738063848950,-500.0,0.00017123,2]
[350693224,1738063848959,-500.0,0.00017123,2]
[350693225,1738063848969,-151.0,0.00017123,2]
[350693226,1738063848979,-500.0,0.00017123,2]
[350693227,1738063848989,-5594.44,0.00017123,2]
[350693228,1738063848999,-500.0,0.00017123,2]
[350693229,1738063849009,-500.0,0.00017123,2]
[350693230,1738063849018,-612.41,0.00017123,2]
[350693231,1738063849028,-500.0,0.00017123,2]
[350693232,1738063849038,-151.0,0.00017123,2]
[350693233,1738063849049,-157.949394,0.00017123,2]
[350693234,1738063849059,-911.49,0.00017123,2]
[350693235,1738063849070,-809.43,0.00017123,2]
[350693236,1738063849080,-157.949394,0.00017123,2]
[350693237,1738063849091,-500.0,0.00017123,2]
[350693238,1738063849100,-573.9,0.00017123,2]
[350693239,1738063849111,-523.33,0.00017123,2]
[350693240,1738063849121,-563.04,0.00017123,2]
[350693241,1738063849132,-500.0,0.00017123,2]
[350693242,1738063849143,-519.82,0.00017123,2]
[350693243,1738063849153,-508.63866783,0.00017123,2]
[350693244,1738063849167,-411.34454212,0.00017123,2]
[350693245,1738063849177,-500.0,0.00017123,2]
[350693246,1738063849188,-500.0,0.00017123,2]
[350693247,1738063849198,-500.0,0.00017123,2]
[350693248,1738063849207,-500.0,0.00017123,2]
[350693249,1738063849217,-151.0,0.00017123,2]
[350693250,1738063849227,-571.69,0.00017123,2]
[350693251,1738063849237,-500.0,0.00017123,2]
[350693252,1738063849248,-500.0,0.00017123,2]
[350693253,1738063849258,-500.0,0.00017123,2]
[350693254,1738063849268,-2561.53,0.00017123,2]
[350693255,1738063849280,-1705.35,0.00017123,2]
[350693256,1738063849289,-500.0,0.00017123,2]
[350693257,1738063849299,-500.0,0.00017123,2]
[350693258,1738063849308,-500.0,0.00017123,2]
[350693259,1738063849317,-981.94,0.00017123,2]
[350693260,1738063849327,-500.0,0.00017123,2]
[350693261,1738063849337,-3911.49,0.00017123,2]
[350693262,1738063849347,-500.0,0.00017123,2]
[350693263,1738063849356,-500.0,0.00017123,2]
[350693264,1738063849366,-158.0,0.00017241,2]
[350693265,1738063849376,-158.0,0.00017241,2]
[350693266,1738063849385,-158.0,0.00017241,2]
[350693267,1738063849395,-158.0,0.00017241,2]
[350693268,1738063849404,-158.0,0.00017241,2]
[350693269,1738063849415,-158.0,0.00017241,2]
[350693270,1738063849424,-158.0,0.00017241,2]
[350693271,1738063849437,-158.0,0.00017241,2]
[350693272,1738063849451,-159.28,0.00017241,2]
[350693273,1738063849465,-151.0,0.0001726,2]
[350693274,1738063849479,-500.0,0.0001726,2]
[350693275,1738063849494,-151.0,0.0001726,2]
[350693276,1738063849510,-500.0,0.0001726,2]
[350693277,1738063849524,-538.97014698,0.0001726,2]
[350693278,1738063849539,-151.0,0.0001726,2]
[350693279,1738063849553,-500.0,0.0001726,2]
[350693280,1738063849566,-500.0,0.0001726,2]
[350693281,1738063849580,-500.0,0.0001726,2]
[350693282,1738063849594,-500.0,0.0001726,2]
[350693283,1738063849605,-152.0865339,0.0001726,2]
[350693284,1738063849619,-396.72812116,0.0001726,2]
[350693285,1738063849632,-500.0,0.0001726,2]
[350693286,1738063849646,-500.0,0.0001726,2]
[350693287,1738063849662,-488.189914,0.0001726,2]
[350693288,1738063849678,-488.189914,0.0001726,2]
[350693289,1738063849689,-500.0,0.0001726,2]
[350693290,1738063849699,-151.0,0.0001726,2]
[350693291,1738063849714,-151.0,0.0001726,2]
[350693292,1738063849728,-500.0,0.0001726,2]
[350693293,1738063849739,-500.0,0.0001726,2]
[350693294,1738063849755,-151.0,0.0001726,2]
[350693295,1738063849767,-151.0,0.0001726,2]
[350693296,1738063849778,-500.0,0.0001726,2]
[350693297,1738063849791,-500.0,0.0001726,2]
[350693298,1738063849803,-500.0,0.0001726,2]
[350693299,1738063849815,-500.0,0.0001726,2]
[350693300,1738063849827,-579.33417192,0.0001726,2]
[350693301,1738063849839,-660.63,0.0001726,2]
[350693302,1738063849852,-151.0,0.0001726,2]
[350693303,1738063849864,-500.0,0.0001726,2]
[350693304,1738063849876,-726.18,0.0001726,2]
[350693305,1738063849888,-500.0,0.0001726,2]
[350693306,1738063849901,-500.0,0.0001726,2]
[350693307,1738063849914,-500.0,0.0001726,2]
[350693308,1738063849926,-500.0,0.0001726,2]
[350693309,1738063849940,-739.57,0.0001726,2]
[350693310,1738063849952,-500.0,0.0001726,2]
[350693311,1738063849964,-500.0,0.0001726,2]
[350693312,1738063849977,-500.0,0.0001726,2]
[350693313,1738063849989,-549.15,0.0001726,2]
[350693314,1738063850002,-500.0,0.0001726,2]
[350693315,1738063850014,-500.0,0.0001726,2]
[350693316,1738063850027,-949.13,0.0001726,2]
[350693317,1738063850039,-13802.87,0.0001726,2]
[350693318,1738063850051,-1738.7,0.0001726,2]
[350693319,1738063850063,-500.0,0.0001726,2]
[350693320,1738063850075,-500.0,0.0001726,2]
[350693321,1738063850088,-219.46823,0.0001726,2]
[350693322,1738063850101,-500.0,0.0001726,2]
[350693323,1738063850113,-5594.44,0.0001726,2]
[350693324,1738063850126,-500.0,0.0001726,2]
[350693325,1738063850138,-500.0,0.0001726,2]
[350693326,1738063850151,-500.0,0.0001726,2]
[350693327,1738063850163,-151.0,0.0001726,2]
[350693328,1738063850173,-157.949394,0.0001726,2]
[350693329,1738063850182,-911.49,0.0001726,2]
[350693330,1738063850192,-809.43,0.0001726,2]
[350693331,1738063850201,-157.949394,0.0001726,2]
[350693332,1738063850210,-500.0,0.0001726,2]
[350693333,1738063850219,-573.9,0.0001726,2]
[350693334,1738063850229,-563.04,0.0001726,2]
[350693335,1738063850238,-500.0,0.0001726,2]
[350693336,1738063850247,-519.82,0.0001726,2]
[350693337,1738063850384,-500.0,0.0001726,2]
[350693338,1738063850394,-500.0,0.0001726,2]
[350693339,1738063850403,-500.0,0.0001726,2]
[350693340,1738063850414,-500.0,0.0001726,2]
[350693341,1738063850423,-571.69,0.0001726,2]
[350693342,1738063850432,-500.0,0.0001726,2]
[350693343,1738063850442,-500.0,0.0001726,2]
[350693344,1738063850452,-500.0,0.0001726,2]
[350693345,1738063850462,-2561.53,0.0001726,2]
[350693346,1738063850471,-1705.35,0.0001726,2]
[350693347,1738063850480,-500.0,0.0001726,2]
[350693348,1738063850490,-500.0,0.0001726,2]
[350693349,1738063850499,-500.0,0.0001726,2]
[350693350,1738063850508,-981.94,0.0001726,2]
[350693351,1738063850518,-500.0,0.0001726,2]
[350693352,1738063850527,-3911.49,0.0001726,2]
[350693353,1738063850536,-500.0,0.0001726,2]
[350693354,1738063850545,-500.0,0.0001726,2]
[350693355,1738063850554,-151.0,0.000173,2]
[350693356,1738063850563,-500.0,0.00017397,2]
[350693357,1738063850573,-183.08948737,0.00017397,2]
[350693358,1738063850582,-500.0,0.00017397,2]
[350693359,1738063850591,-150.17,0.00017397,2]
[350693360,1738063850600,-500.0,0.00017397,2]
[350693361,1738063850609,-150.17,0.00017397,2]
[350693362,1738063850620,-150.17,0.00017397,2]
[350693363,1738063850629,-324.62,0.00017397,2]
[350693364,1738063850639,-178.64812816,0.00017397,2]
[350693365,1738063850648,-500.0,0.00017397,2]
[350693366,1738063850657,-500.0,0.00017397,2]
[350693367,1738063850666,-500.0,0.00017397,2]
[350693368,1738063850675,-500.0,0.00017397,2]
[350693369,1738063850684,-500.0,0.00017397,2]
[350693370,1738063850693,-500.0,0.00017397,2]
[350693371,1738063850703,-488.189914,0.00017397,2]
[350693372,1738063850712,-488.189914,0.00017397,2]
[350693373,1738063850720,-500.0,0.00017397,2]
[350693374,1738063850729,-151.0,0.00017397,2]
[350693375,1738063850738,-500.0,0.00017397,2]
[350693376,1738063850751,-500.0,0.00017397,2]
[350693377,1738063850760,-500.0,0.00017397,2]
[350693378,1738063850769,-500.0,0.00017397,2]
[350693379,1738063850778,-500.0,0.00017397,2]
[350693380,1738063850788,-415.56862837,0.00017397,2]
[350693381,1738063850798,-660.63,0.00017397,2]
[350693382,1738063850807,-500.0,0.00017397,2]
[350693383,1738063850817,-726.18,0.00017397,2]
[350693384,1738063850827,-500.0,0.00017397,2]
[350693385,1738063850836,-550.65873113,0.00017397,2]
[350693386,1738063850845,-500.0,0.00017397,2]
[350693387,1738063850854,-500.0,0.00017397,2]
[350693388,1738063850863,-739.57,0.00017397,2]
[350693389,1738063850872,-500.0,0.00017397,2]
[350693390,1738063850881,-500.0,0.00017397,2]
[350693391,1738063850890,-500.0,0.00017397,2]
[350693392,1738063850900,-549.15,0.00017397,2]
[350693393,1738063850910,-500.0,0.00017397,2]
[350693394,1738063850920,-500.0,0.00017397,2]
[350693395,1738063850930,-949.13,0.00017397,2]
[350693396,1738063850939,-13802.87,0.00017397,2]
[350693397,1738063850948,-1738.7,0.00017397,2]
[350693398,1738063850957,-500.0,0.00017397,2]
[350693399,1738063850966,-500.0,0.00017397,2]
[350693400,1738063850976,-500.0,0.00017397,2]
[350693401,1738063850986,-5594.44,0.00017397,2]
[350693402,1738063850996,-500.0,0.00017397,2]
[350693403,1738063851006,-500.0,0.00017397,2]
[350693404,1738063851016,-500.0,0.00017397,2]
[350693405,1738063851026,-151.0,0.00017397,2]
[350693406,1738063851036,-157.949394,0.00017397,2]
[350693407,1738063851046,-911.49,0.00017397,2]
[350693408,1738063851055,-809.43,0.00017397,2]
[350693409,1738063851064,-157.949394,0.00017397,2]
[350693410,1738063851074,-337.30914776,0.00017397,2]
[350693411,1738063851083,-573.9,0.00017397,2]
[350693412,1738063851093,-563.04,0.00017397,2]
[350693413,1738063851103,-500.0,0.00017397,2]
[350693414,1738063851113,-519.82,0.00017397,2]
[350693415,1738063851124,-500.0,0.00017397,2]
[350693416,1738063851133,-500.0,0.00017397,2]
[350693417,1738063851144,-500.0,0.00017397,2]
[350693418,1738063851154,-500.0,0.00017397,2]
[350693419,1738063851168,-571.69,0.00017397,2]
[350693420,1738063851178,-500.0,0.00017397,2]
[350693421,1738063851189,-500.0,0.00017397,2]
[350693422,1738063851199,-500.0,0.00017397,2]
[350693423,1738063851209,-2561.53,0.00017397,2]
[350693424,1738063851219,-1705.35,0.00017397,2]
[350693425,1738063851229,-500.0,0.00017397,2]
[350693426,1738063851238,-500.0,0.00017397,2]
[350693427,1738063851247,-500.0,0.00017397,2]
[350693428,1738063851257,-981.94,0.00017397,2]
[350693429,1738063851266,-500.0,0.00017397,2]
[350693430,1738063851276,-500.0,0.00017397,2]
[350693431,1738063851285,-3911.49,0.00017397,2]
[350693432,1738063851294,-500.0,0.00017397,2]
[350693433,1738063851304,-151.0,0.000174,2]
[350693434,1738063851313,-150.823,0.00017489,2]
[350693435,1738063851323,-150.628,0.00017489,2]
[350693436,1738063851332,-420.0,0.00017492,2]
[350693437,1738063851341,-151.0,0.000175,2]
[350693438,1738063851350,-151.0,0.00017534,2]
[350693439,1738063851360,-152.194572,0.00017534,2]
[350693440,1738063851369,-159.331682,0.00017534,2]
[350693441,1738063851378,-500.0,0.00017534,2]
[350693442,1738063851388,-500.0,0.00017534,2]
[350693443,1738063851397,-500.0,0.00017534,2]
[350693444,1738063851407,-500.0,0.00017534,2]
[350693445,1738063851418,-500.0,0.00017534,2]
[350693446,1738063851428,-500.0,0.00017534,2]
[350693447,1738063851437,-500.0,0.00017534,2]
[350693448,1738063851447,-500.0,0.00017534,2]
[350693449,1738063851456,-500.0,0.00017534,2]
[350693450,1738063851465,-151.0,0.00017534,2]
[350693451,1738063851477,-151.0,0.00017534,2]
[350693452,1738063851487,-380.49680201,0.00017534,2]
[350693453,1738063851497,-500.0,0.00017534,2]
[350693454,1738063851506,-500.0,0.00017534,2]
[350693455,1738063851515,-660.63,0.00017534,2]
[350693456,1738063851525,-175.716843,0.00017534,2]
[350693457,1738063851534,-500.0,0.00017534,2]
[350693458,1738063851544,-726.18,0.00017534,2]
[350693459,1738063851554,-500.0,0.00017534,2]
[350693460,1738063851563,-500.0,0.00017534,2]
[350693461,1738063851573,-500.0,0.00017534,2]
[350693462,1738063851582,-739.57,0.00017534,2]
[350693463,1738063851592,-500.0,0.00017534,2]
[350693464,1738063851601,-500.0,0.00017534,2]
[350693465,1738063851611,-500.0,0.00017534,2]
[350693466,1738063851620,-549.15,0.00017534,2]
[350693467,1738063851629,-500.0,0.00017534,2]
[350693468,1738063851638,-500.0,0.00017534,2]
[350693469,1738063851648,-551.17915806,0.00017534,2]
[350693470,1738063851746,-397.95084194,0.00017534,2]
[350693471,1738063851759,-13802.87,0.00017534,2]
[350693472,1738063851769,-1738.7,0.00017534,2]
[350693473,1738063851778,-500.0,0.00017534,2]
[350693474,1738063851787,-500.0,0.00017534,2]
[350693475,1738063851797,-500.0,0.00017534,2]
[350693476,1738063851807,-5594.44,0.00017534,2]
[350693477,1738063851816,-646.14653833,0.00017534,2]
[350693478,1738063851828,-500.0,0.00017534,2]
[350693479,1738063851836,-500.0,0.00017534,2]
[350693480,1738063851846,-911.49,0.00017534,2]
[350693481,1738063851855,-809.43,0.00017534,2]
[350693482,1738063851864,-573.9,0.00017534,2]
[350693483,1738063851873,-563.04,0.00017534,2]
[350693484,1738063851882,-500.0,0.00017534,2]
[350693485,1738063851891,-519.82,0.00017534,2]
[350693486,1738063851900,-500.0,0.00017534,2]
[350693487,1738063851909,-500.0,0.00017534,2]
[350693488,1738063851918,-500.0,0.00017534,2]
[350693489,1738063851928,-500.0,0.00017534,2]
[350693490,1738063851937,-571.69,0.00017534,2]
[350693491,1738063851946,-500.0,0.00017534,2]
[350693492,1738063851955,-500.0,0.00017534,2]
[350693493,1738063851965,-500.0,0.00017534,2]
[350693494,1738063851974,-2561.53,0.00017534,2]
[350693495,1738063851983,-1705.35,0.00017534,2]
[350693496,1738063851993,-500.0,0.00017534,2]
[350693497,1738063852002,-500.0,0.00017534,2]
[350693498,1738063852011,-500.0,0.00017534,2]
[350693499,1738063852021,-981.94,0.00017534,2]
[350693500,1738063852030,-500.0,0.00017534,2]
[350693501,1738063852040,-500.0,0.00017534,2]
[350693502,1738063852049,-1970.73346685,0.00017534,2]
[350693503,1738063852132,-152.0,0.00016901,2]
[350693504,1738063852141,-200.5613876,0.00017534,2]
[350693505,1738063852153,-1740.19514555,0.00017534,2]
[350693506,1738063852163,-500.0,0.00017534,2]
[350693507,1738063852172,-537.0,0.00017547,2]
[350693508,1738063852182,-2047.0,0.00017547,2]
[350693509,1738063852191,-2303.0,0.00017547,2]
[350693510,1738063852200,-395.0,0.00017547,2]
[350693511,1738063852209,-500.0,0.00017671,2]
[350693512,1738063852218,-392.44451926,0.00017671,2]
[350693534,1738064052483,184.735084,0.00013699,2]
[350693536,1738064519324,297.337348,0.00013973,2]
[350693537,1738064550172,208.08140402,0.0001515,2]
[350693540,1738064834330,-1024.4978092,0.00015412,2]
[350693541,1738064834352,-280.26083797,0.00015446,2]
[350693542,1738064844075,-3527.87178827,0.00015446,2]
[350693543,1738064845093,-861.75006416,0.00015446,2]
[350693544,1738064845119,-361.905125,0.0001549,2]
[350693545,1738064845141,-405.2949651,0.00015569,2]
[350693546,1738064845171,-220.86609045,0.00016338,2]
[350693547,1738064845201,-272.10725511,0.00016338,2]
[350693548,1738064845231,-300.0,0.00016436,2]
[350693549,1738064845257,-727.309,0.00016437,2]
[350693550,1738064845287,-140.59597867,0.00016437,2]
[350693552,1738064994222,184.735084,0.00013699,2]
[350693663,1738065038143,-152.0,0.00015828,5]
[350693665,1738065038152,-300.0,0.00016436,2]
[350693667,1738065038162,-359.40402133,0.00016437,2]
[350693669,1738065038171,-541.22123555,0.00016437,2]
[350693670,1738065038180,-500.0,0.00016437,2]
[350693672,1738065038190,-500.0,0.00016437,2]
[350693674,1738065038199,-500.0,0.00016437,2]
[350693676,1738065038209,-179.58268427,0.00016437,2]
[350693678,1738065038222,-500.0,0.00016437,2]
[350693680,1738065038231,-448.80917899,0.00016437,2]
[350693682,1738065038240,-531.24662605,0.00016437,2]
[350693683,1738065038249,-500.0,0.00016437,2]
[350693685,1738065038261,-500.0,0.00016437,2]
[350693687,1738065038274,-500.0,0.00016437,2]
[350693689,1738065038285,-500.0,0.00016437,2]
[350693691,1738065038294,-500.0,0.00016437,2]
[350693693,1738065038304,-500.0,0.00016437,2]
[350693694,1738065038314,-500.0,0.00016437,2]
[350693696,1738065038323,-500.0,0.00016437,2]
[350693698,1738065038333,-500.0,0.00016437,2]
[350693700,1738065038342,-500.0,0.00016437,2]
[350693702,1738065038351,-500.0,0.00016437,2]
[350693704,1738065038361,-500.0,0.00016438,2]
[350693705,1738065038371,-500.0,0.00016438,2]
[350693707,1738065038380,-501.6811376,0.00016438,2]
[350693709,1738065038390,-558.44328288,0.00016438,2]
[350693711,1738065038400,-500.0,0.00016438,2]
[350693713,1738065038409,-500.0,0.00016438,2]
[350693715,1738065038418,-500.0,0.00016438,2]
[350693716,1738065038428,-500.0,0.00016438,2]
[350693718,1738065038438,-500.0,0.00016438,2]
[350693720,1738065038447,-500.54166861,0.00016438,2]
[350693722,1738065038456,-500.0,0.00016438,2]
[350693724,1738065038465,-500.0,0.00016438,2]
[350693726,1738065038474,-94.34871039,0.00016438,2]
[350693737,1738065038595,-405.65128961,0.00016438,2]
[350693739,1738065038604,-248.27106685,0.00016438,2]
[350693741,1738065038614,-372.67764354,0.00016438,2]
[350693743,1738065038625,-127.32235646,0.00016438,2]
[350693745,1738065038635,-500.0,0.00016438,2]
[350693746,1738065038644,-500.0,0.00016438,2]
[350693748,1738065038653,-500.0,0.00016438,2]
[350693750,1738065038662,-500.0,0.00016438,2]
[350693752,1738065038671,-500.0,0.00016438,2]
[350693754,1738065038681,-540.88,0.00016438,2]
[350693756,1738065038692,-500.0,0.00016438,2]
[350693758,1738065038701,-500.0,0.00016438,2]
[350693759,1738065038710,-500.0,0.00016438,2]
[350693761,1738065038719,-500.0,0.00016438,2]
[350693763,1738065038729,-500.0,0.00016438,2]
[350693765,1738065038738,-500.0,0.00016438,2]
[350693767,1738065038747,-500.0,0.00016438,2]
[350693769,1738065038756,-500.0,0.00016438,2]
[350693770,1738065038765,-500.0,0.00016438,2]
[350693772,1738065038775,-500.0,0.00016438,2]
[350693774,1738065038784,-500.0,0.00016438,2]
[350693776,1738065038793,-625.30064821,0.00016438,2]
[350693778,1738065038802,-500.0,0.00016438,2]
[350693780,1738065038812,-500.0,0.00016438,2]
[350693781,1738065038821,-500.0,0.00016438,2]
[350693783,1738065038830,-500.0,0.00016438,2]
[350693785,1738065038840,-500.0,0.00016438,2]
[350693787,1738065038849,-503.17562315,0.00016438,2]
[350693789,1738065038859,-518.32,0.00016438,2]
[350693791,1738065038868,-500.0,0.00016438,2]